bitfinex/quotes_BTCUSD_20241022
["timestamp","ask_amount","ask_price","bid_price","bid_amount"]
[1729611672630,0.000826,67354.0,67353.0,0.15925854]
[1729611672631,0.080626,67354.0,67353.0,0.15925854]
[1729611673539,0.080626,67354.0,67353.0,0.15525854]
[1729611673788,0.080626,67354.0,67353.0,0.15025854]
[1729611674026,0.080626,67354.0,67353.0,0.005447]
[1729611674251,0.080626,67354.0,67353.0,0.009447]
[1729611674479,0.080626,67354.0,67353.0,0.005447]
[1729611674695,0.080626,67354.0,67353.0,0.009447]
[1729611674990,0.080626,67354.0,67353.0,0.153918]
[1729611675234,0.000826,67354.0,67353.0,0.25964122]
[1729611675683,0.000826,67354.0,67353.0,0.26064122]
[1729611676628,0.000826,67354.0,67353.0,0.37199311]
[1729611676858,0.000826,67354.0,67353.0,0.25864122]
[1729611677093,0.000826,67354.0,67353.0,0.26861017]
[1729611677544,0.000826,67354.0,67353.0,0.26161017]
[1729611677771,0.000826,67354.0,67353.0,0.26561017]
[1729611678227,0.000826,67354.0,67353.0,0.26264122]
[1729611678468,0.000826,67354.0,67353.0,0.26664122]
[1729611678721,0.000826,67354.0,67353.0,0.26264122]
[1729611679170,0.000826,67354.0,67353.0,0.25864122]
[1729611680290,0.000826,67354.0,67353.0,0.26264122]
[1729611680522,0.000826,67354.0,67353.0,0.26561019]
[1729611680750,0.000826,67354.0,67353.0,0.26161019]
[1729611680983,0.000826,67354.0,67353.0,0.37399287]
[1729611681274,0.000826,67354.0,67353.0,0.73078305]
[1729611681462,0.000826,67354.0,67353.0,0.72678305]
[1729611682154,0.000826,67354.0,67353.0,0.73078305]
[1729611682372,0.000826,67354.0,67353.0,0.68331652]
[1729611682602,0.000826,67354.0,67353.0,0.76011652]
[1729611683746,0.000826,67354.0,67353.0,0.75611652]
[1729611684184,0.000826,67354.0,67353.0,0.76011652]
[1729611685740,0.000826,67354.0,67353.0,0.78311652]
[1729611687841,0.000826,67354.0,67353.0,0.61381769]
[1729611688051,0.000826,67354.0,67353.0,0.78311652]
[1729611690148,0.000826,67354.0,67353.0,0.82749825]
[1729611690574,0.000826,67354.0,67353.0,0.78311652]
[1729611702492,0.000826,67354.0,67353.0,0.82751916]
[1729611702904,0.000826,67354.0,67353.0,0.78311652]
[1729611704328,0.000826,67354.0,67353.0,0.83045647]
[1729611704731,0.000826,67354.0,67353.0,0.89707808]
[1729611705931,0.000826,67363.0,67362.0,0.01678754]
[1729611706135,0.0922,67382.0,67362.0,0.01678754]
[1729611706136,0.01103141,67380.0,67379.0,0.148414]
[1729611706365,0.000842,67383.0,67382.0,0.25019454]
[1729611706585,0.000842,67383.0,67382.0,0.40212125]
[1729611706787,0.000842,67383.0,67382.0,0.39915369]
[1729611707226,0.000842,67383.0,67382.0,0.53547308]
[1729611707444,0.000842,67383.0,67382.0,0.42715369]
[1729611707869,0.000842,67383.0,67382.0,0.43115369]
[1729611708069,0.000842,67383.0,67382.0,0.53947308]
[1729611708279,0.000842,67383.0,67382.0,0.60028698]
[1729611709751,0.000842,67383.0,67382.0,0.60328698]
[1729611712053,0.000842,67383.0,67382.0,0.61328698]
[1729611712702,0.000842,67383.0,67382.0,0.61528698]
[1729611713184,0.000841,67391.0,67390.0,0.00534054]
[1729611713393,0.000841,67391.0,67390.0,0.57478902]
[1729611713615,0.000841,67391.0,67390.0,0.77395527]
[1729611714055,9e-05,67398.0,67397.0,0.00534054]
[1729611714269,9e-05,67398.0,67397.0,0.77690705]
[1729611714517,9e-05,67398.0,67397.0,0.77594027]
[1729611714965,9e-05,67398.0,67397.0,0.77394027]
[1729611715387,0.082241,67422.0,67397.0,0.77394027]
[1729611715388,0.082241,67422.0,67399.0,0.28671054]
[1729611715600,0.082241,67422.0,67399.0,0.43566969]
[1729611716024,0.082241,67422.0,67399.0,0.43766969]
[1729611716627,0.082241,67422.0,67399.0,0.43566969]
[1729611717041,0.082241,67422.0,67399.0,0.44066969]
[1729611717249,0.082241,67422.0,67399.0,0.44366969]
[1729611717473,0.082241,67422.0,67399.0,0.44066969]
[1729611718064,0.082241,67422.0,67399.0,0.43866969]
[1729611718486,0.082241,67422.0,67399.0,0.44366969]
[1729611718704,0.082241,67422.0,67399.0,0.44066969]
[1729611718931,0.082241,67422.0,67399.0,0.43766969]
[1729611719149,0.082241,67422.0,67399.0,0.44066969]
[1729611719763,0.082241,67422.0,67399.0,0.43766969]
[1729611719975,0.082241,67422.0,67399.0,0.44066969]
[1729611720166,0.082241,67422.0,67399.0,0.44366969]
[1729611720372,0.082241,67422.0,67399.0,0.44066969]
[1729611720783,0.082241,67422.0,67399.0,0.44366969]
[1729611721234,0.082241,67422.0,67399.0,1.72156969]
[1729611721410,0.082241,67422.0,67399.0,1.71856969]
[1729611721615,0.000841,67422.0,67412.0,0.46458154]
[1729611721833,0.000841,67422.0,67412.0,0.78467398]
[1729611722470,0.000841,67422.0,67412.0,2.06057398]
[1729611723293,0.000841,67422.0,67412.0,2.06357398]
[1729611723916,0.000841,67422.0,67412.0,1.98417398]
[1729611724124,0.000841,67422.0,67412.0,1.88567398]
[1729611724554,0.0775,67419.0,67412.0,1.86267398]
[1729611724983,0.0775,67419.0,67412.0,1.69354069]
[1729611725587,0.0775,67419.0,67412.0,1.69654069]
[1729611726012,0.0775,67419.0,67412.0,1.71654069]
[1729611726215,0.0775,67419.0,67412.0,1.71154069]
[1729611726425,0.0775,67419.0,67412.0,1.71654069]
[1729611726895,0.0775,67419.0,67412.0,1.71954069]
[1729611727088,0.0775,67419.0,67412.0,0.43364069]
[1729611727311,0.0775,67419.0,67412.0,0.43664069]
[1729611727521,0.0775,67419.0,67412.0,0.40364069]
[1729611727735,0.0775,67419.0,67412.0,0.25468154]
[1729611728387,0.0775,67419.0,67412.0,0.25464792]
[1729611728816,0.0775,67419.0,67412.0,0.25764792]
[1729611729022,0.0775,67419.0,67412.0,0.40883149]
[1729611729239,0.000841,67422.0,67412.0,0.44086511]
[1729611729454,0.000841,67422.0,67412.0,0.43786511]
[1729611729691,0.000841,67422.0,67412.0,0.44286511]
[1729611729917,0.000841,67422.0,67421.0,0.03834054]
[1729611730128,0.000841,67422.0,67421.0,0.60771961]
[1729611730347,0.000841,67422.0,67421.0,0.68315398]
[1729611731199,0.000841,67422.0,67421.0,0.68615398]
[1729611731417,0.000841,67422.0,67421.0,0.68815398]
[1729611731842,0.000841,67422.0,67421.0,0.68615398]
[1729611732079,0.000841,67422.0,67421.0,0.68915398]
[1729611732979,0.000841,67422.0,67421.0,0.91209457]
[1729611733195,5.24e-05,67464.0,67450.0,0.14859754]
[1729611733196,0.22294059,67456.0,67450.0,0.14859754]
[1729611733412,0.22294059,67456.0,67450.0,0.31773083]
[1729611733631,0.22294059,67463.0,67450.0,0.31773083]
[1729611733842,5.24e-05,67464.0,67450.0,0.31773083]
[1729611734297,5.24e-05,67464.0,67450.0,0.14859754]
[1729611734760,0.148229,67463.0,67450.0,0.14859754]
[1729611734988,0.14823,67463.0,67450.0,0.14859754]
[1729611735224,0.080341,67451.0,67450.0,0.14859754]
[1729611735919,0.080341,67451.0,67450.0,0.15459754]
[1729611736629,0.080341,67451.0,67450.0,0.15159754]
[1729611736857,0.080341,67451.0,67450.0,0.1538211]
[1729611737060,0.080341,67451.0,67450.0,0.1558211]
[1729611737477,0.080341,67451.0,67450.0,0.1578211]
[1729611737690,0.080341,67451.0,67450.0,0.30678025]
[1729611737909,0.000841,67451.0,67450.0,0.30678025]
[1729611739178,0.000841,67451.0,67450.0,0.1578211]
[1729611739871,0.000841,67451.0,67450.0,0.30678025]
[1729611740108,0.000841,67451.0,67450.0,0.30974508]
[1729611740318,0.000841,67451.0,67450.0,0.30678025]
[1729611741579,0.000841,67451.0,67450.0,0.1578211]
[1729611741788,0.000841,67451.0,67450.0,0.16078596]
[1729611742001,0.000841,67451.0,67450.0,0.1578211]
[1729611742225,0.000841,67451.0,67450.0,0.1548211]
[1729611742470,0.000841,67451.0,67450.0,0.1508211]
[1729611742689,0.000841,67451.0,67450.0,0.1568211]
[1729611742913,0.000841,67451.0,67450.0,0.1538211]
[1729611743376,0.000841,67451.0,67450.0,0.1568211]
[1729611743826,0.000841,67451.0,67450.0,0.1538211]
[1729611744281,0.000841,67451.0,67450.0,0.1568211]
[1729611746988,0.000841,67451.0,67450.0,0.37976169]
[1729611747204,0.000841,67451.0,67450.0,0.52872084]
[1729611747423,0.000841,67451.0,67450.0,0.30578025]
[1729611757176,0.000841,67451.0,67450.0,0.44378025]
[1729611757442,0.000841,67451.0,67450.0,0.61768025]
[1729611757654,0.000841,67451.0,67450.0,2.06471354]
[1729611757845,0.000841,67451.0,67450.0,1.89458025]
[1729611758302,0.000841,67451.0,67450.0,1.89758025]
[1729611758521,0.000841,67451.0,67450.0,2.06671354]
[1729611758753,0.000841,67451.0,67450.0,2.06071354]
[1729611759180,0.000841,67451.0,67450.0,1.89158025]
[1729611759396,0.000841,67451.0,67450.0,1.88958025]
[1729611759830,0.000841,67451.0,67450.0,1.89158025]
[1729611760503,0.000841,67451.0,67450.0,1.89358025]
[1729611760717,0.000841,67451.0,67450.0,1.89158025]
[1729611760928,0.0075,67476.0,67467.0,0.14856054]
[1729611760929,0.01379946,67475.0,67467.0,0.14856054]
[1729611761146,0.0075,67476.0,67467.0,0.14856054]
[1729611761147,0.0075,67476.0,67467.0,0.46961688]
[1729611761379,0.0075,67476.0,67467.0,0.46665298]
[1729611762900,0.0075,67476.0,67467.0,0.46865298]
[1729611763567,0.01104664,67475.0,67467.0,0.46865298]
[1729611763787,0.01104664,67474.0,67467.0,0.46865298]
[1729611764054,0.01104664,67473.0,67467.0,0.46865298]
[1729611764262,0.01104664,67472.0,67467.0,0.47065298]
[1729611764467,0.0075,67476.0,67467.0,0.47065298]
[1729611764676,0.01104315,67475.0,67467.0,0.47065298]
[1729611764876,0.01104315,67474.0,67467.0,0.47065298]
[1729611765076,0.01104315,67473.0,67467.0,0.47065298]
[1729611765189,0.0075,67476.0,67467.0,0.47065298]
[1729611765800,0.01104147,67475.0,67467.0,0.47065298]
[1729611766013,0.01104147,67474.0,67467.0,0.47065298]
[1729611766238,0.01103686,67473.0,67467.0,0.47065298]
[1729611766445,0.01103686,67475.0,67467.0,0.47065298]
[1729611766757,0.01103686,67474.0,67467.0,0.47065298]
[1729611766959,0.01103686,67473.0,67467.0,0.47065298]
[1729611767163,0.01103686,67475.0,67467.0,0.15256054]
[1729611767367,0.0812,67470.0,67467.0,0.15256054]
[1729611767573,0.0812,67470.0,67467.0,0.00434054]
[1729611767778,0.09223686,67470.0,67467.0,0.00434054]
[1729611767979,0.01103686,67469.0,67467.0,0.00434054]
[1729611768184,0.01187686,67468.0,67467.0,0.00434054]
[1729611768350,0.01187686,67468.0,67467.0,0.00234054]
[1729611768757,0.01187686,67468.0,67467.0,0.004]
[1729611769079,0.36768437,67468.0,67467.0,0.002]
[1729611769323,0.28727975,67468.0,67467.0,0.002]
[1729611769441,0.28727975,67468.0,67467.0,0.004]
[1729611769646,0.28727605,67468.0,67467.0,0.002]
[1729611769849,0.27624289,67468.0,67467.0,0.003]
[1729611770255,0.12802489,67468.0,67467.0,0.002]
[1729611770504,0.28727708,67468.0,67467.0,0.001]
[1729611771123,0.28927708,67468.0,67467.0,0.001]
[1729611771554,0.37927708,67468.0,67467.0,0.001]
[1729611771772,0.148233,67462.0,67458.0,0.22294059]
[1729611771942,0.08633319,67461.0,67458.0,0.22294059]
[1729611772147,0.01103319,67460.0,67458.0,0.22328113]
[1729611772402,0.01103319,67459.0,67458.0,0.22328113]
[1729611772709,0.01103723,67460.0,67459.0,0.00222351]
[1729611773546,0.01103198,67460.0,67459.0,0.00222351]
[1729611773966,0.22928261,67460.0,67459.0,0.00222351]
[1729611774173,0.01103198,67460.0,67458.0,0.001]
[1729611774378,0.01103198,67459.0,67458.0,0.001]
[1729611774578,0.01103198,67460.0,67457.0,0.00222351]
[1729611774753,0.01103198,67459.0,67457.0,0.00222351]
[1729611774962,0.01103198,67460.0,67457.0,0.00222351]
[1729611775207,0.01103198,67459.0,67457.0,0.00222351]
[1729611775391,0.01103198,67460.0,67457.0,0.00222351]
[1729611775574,0.003,67459.0,67457.0,0.00222351]
[1729611776138,0.003,67459.0,67458.0,0.00034054]
[1729611776362,0.003,67459.0,67458.0,0.14858054]
[1729611776628,0.003,67459.0,67458.0,0.00034054]
[1729611776854,0.0753,67461.0,67458.0,0.00034054]
[1729611777280,0.002,67459.0,67455.0,0.00034054]
[1729611777516,0.002,67459.0,67454.0,0.22328113]
[1729611777726,0.01103266,67460.0,67454.0,0.22328113]
[1729611777961,0.08633266,67461.0,67454.0,0.22328113]
[1729611778591,0.0753,67461.0,67454.0,0.22328113]
[1729611779250,0.08633266,67461.0,67454.0,0.22428113]
[1729611779456,0.08633266,67461.0,67454.0,0.22528113]
[1729611779644,0.0753,67461.0,67454.0,0.00234054]
[1729611780091,0.08633266,67461.0,67454.0,0.00234054]
[1729611780307,0.01103266,67460.0,67454.0,0.00234054]
[1729611780765,0.0971,67459.0,67454.0,0.001]
[1729611780979,0.0971,67459.0,67454.0,0.002]
[1729611781192,0.10813032,67459.0,67454.0,0.002]
[1729611781406,0.10813032,67459.0,67454.0,0.001]
[1729611781612,0.10813032,67459.0,67453.0,0.22294059]
[1729611781812,0.10813032,67459.0,67454.0,0.001]
[1729611782012,0.10813032,67459.0,67454.0,0.002]
[1729611782221,0.10813032,67459.0,67454.0,0.001]
[1729611782434,0.148241,67458.0,67454.0,0.001]
[1729611782636,0.148246,67455.0,67454.0,0.002]
[1729611782844,0.148246,67455.0,67451.0,0.00165]
[1729611782845,0.0767,67455.0,67451.0,0.00165]
[1729611783075,0.148249,67454.0,67451.0,0.00165]
[1729611783260,0.148253,67452.0,67451.0,0.00165]
[1729611783477,0.15928132,67453.0,67451.0,0.00165]
[1729611783693,0.01103032,67453.0,67451.0,0.00165]
[1729611783913,0.01103032,67454.0,67451.0,0.00165]
[1729611784556,0.0767,67455.0,67451.0,0.00165]
[1729611784772,0.224948,67455.0,67451.0,0.00165]
[1729611784992,0.005,67453.0,67451.0,0.00165]
[1729611785448,0.0767,67455.0,67451.0,0.00165]
[1729611785897,0.0817,67455.0,67451.0,0.00165]
[1729611786338,0.229947,67455.0,67451.0,0.00165]
[1729611787020,0.224947,67455.0,67451.0,0.00165]
[1729611787235,0.0767,67455.0,67451.0,0.00165]
[1729611787467,0.005,67453.0,67451.0,0.00165]
[1729611787928,0.224947,67455.0,67451.0,0.00165]
[1729611788150,0.01103201,67454.0,67451.0,0.00165]
[1729611789047,0.005,67453.0,67451.0,0.00165]
[1729611790172,0.0767,67455.0,67451.0,0.00165]
[1729611790173,0.224947,67455.0,67451.0,0.00165]
[1729611790391,0.148251,67453.0,67451.0,0.00165]
[1729611790601,0.01103201,67453.0,67451.0,0.00165]
[1729611790838,0.005,67454.0,67451.0,0.00165]
[1729611791059,0.01103201,67454.0,67451.0,0.00165]
[1729611791277,0.005,67453.0,67451.0,0.00165]
[1729611791942,0.08773201,67455.0,67451.0,0.00165]
[1729611792156,0.005,67454.0,67451.0,0.00165]
[1729611792820,0.01603201,67454.0,67451.0,0.00165]
[1729611793268,0.01603407,67454.0,67451.0,0.00165]
[1729611793537,0.01103407,67454.0,67451.0,0.00165]
[1729611793749,0.005,67453.0,67451.0,0.00165]
[1729611793981,0.23207112,67452.0,67451.0,0.00165]
[1729611794222,0.39135819,67452.0,67451.0,0.00165]
[1729611794935,0.54031734,67452.0,67451.0,0.00165]
[1729611795175,0.71581734,67452.0,67451.0,0.00165]
[1729611795636,0.71781734,67452.0,67451.0,0.00165]
[1729611795876,0.7274768,67452.0,67451.0,0.00165]
[1729611796419,0.77345529,67452.0,67451.0,0.00165]
[1729611796684,0.33549322,67452.0,67451.0,0.00165]
[1729611796947,0.34049322,67452.0,67451.0,0.00165]
[1729611797203,0.48874622,67452.0,67451.0,0.00165]
[1729611797467,0.53474633,67452.0,67451.0,0.00165]
[1729611797720,0.06203418,67452.0,67451.0,0.00165]
[1729611797986,0.01603407,67452.0,67451.0,0.149905]
[1729611798191,0.005,67452.0,67451.0,0.15024554]
[1729611798423,0.005,67452.0,67451.0,0.00199054]
[1729611798657,0.005,67452.0,67451.0,0.15024554]
[1729611798891,0.005,67452.0,67451.0,0.00199054]
[1729611799536,0.01603407,67452.0,67451.0,0.00199054]
[1729611799981,0.005,67452.0,67451.0,0.00199054]
[1729611800205,0.005,67452.0,67451.0,0.00165]
[1729611800849,0.0160563,67452.0,67451.0,0.00165]
[1729611804158,0.005,67452.0,67451.0,0.00165]
[1729611804387,0.01606338,67452.0,67451.0,0.00165]
[1729611804604,0.01606385,67452.0,67451.0,0.00165]
[1729611807837,0.01607151,67452.0,67451.0,0.00165]
[1729611814212,0.16432451,67452.0,67451.0,0.00165]
[1729611814432,0.21127565,67452.0,67451.0,0.00165]
[1729611814648,0.37466704,67452.0,67451.0,0.00165]
[1729611815058,0.487311,67452.0,67451.0,0.00165]
[1729611815271,0.65092961,67452.0,67451.0,0.00165]
[1729611815475,0.64892961,67452.0,67451.0,0.00165]
[1729611816111,0.61713326,67452.0,67451.0,0.00165]
[1729611816318,0.62209686,67452.0,67451.0,0.00165]
[1729611816739,0.61709686,67452.0,67451.0,0.00165]
[1729611816970,0.3652348,67452.0,67451.0,0.00165]
[1729611817176,0.3672348,67452.0,67451.0,0.00265]
[1729611817587,0.53057812,67452.0,67451.0,0.00265]
[1729611817799,0.61908421,67452.0,67451.0,0.00265]
[1729611818208,0.61908421,67452.0,67451.0,0.00165]
[1729611818209,0.61208421,67452.0,67451.0,0.00165]
[1729611818629,0.62008421,67452.0,67451.0,0.00265]
[1729611819040,0.62608421,67452.0,67451.0,0.00365]
[1729611822253,0.62108421,67452.0,67451.0,0.00365]
[1729611822459,0.62574367,67452.0,67451.0,0.00365]
[1729611823298,0.68619673,67452.0,67451.0,0.00365]
[1729611823959,0.77470351,67452.0,67451.0,0.00365]
[1729611824159,0.68619673,67452.0,67451.0,0.00365]
[1729611824582,0.53723758,67452.0,67451.0,0.00365]
[1729611826105,0.22097328,67452.0,67451.0,0.00365]
[1729611826318,0.28736095,67452.0,67451.0,0.00365]
[1729611826545,0.38435813,67452.0,67451.0,0.00365]
[1729611826746,0.36922729,67452.0,67451.0,0.00365]
[1729611826977,0.5326132,67452.0,67451.0,0.00365]
[1729611827180,0.6211302,67452.0,67451.0,0.00365]
[1729611827385,0.66863921,67452.0,67451.0,0.00365]
[1729611827589,0.68246936,67452.0,67451.0,0.00365]
[1729611828407,0.65707599,67452.0,67451.0,0.00365]
[1729611829424,0.54644338,67452.0,67451.0,0.00365]
[1729611829650,0.65707618,67452.0,67451.0,0.00365]
[1729611830069,0.63496945,67452.0,67451.0,0.00365]
[1729611830480,0.63496322,67452.0,67451.0,0.00365]
[1729611832185,0.61298668,67452.0,67451.0,0.00365]
[1729611832409,0.69614614,67452.0,67451.0,0.00365]
[1729611832626,0.93972821,67452.0,67451.0,0.00365]
[1729611832851,0.148277,67441.0,67440.0,0.22294059]
[1729611833056,0.68319711,67441.0,67440.0,0.22294059]
[1729611833262,0.71649724,67441.0,67440.0,0.22294059]
[1729611833489,0.71649724,67441.0,67433.0,0.0022244]
[1729611833490,0.296568,67439.0,67433.0,0.0022244]
[1729611833702,0.296568,67439.0,67429.0,0.0984]
[1729611833703,0.148288,67437.0,67429.0,0.0984]
[1729611833909,0.18422328,67437.0,67429.0,0.0984]
[1729611834130,0.01106403,67436.0,67429.0,0.0984]
[1729611834345,0.01106403,67435.0,67429.0,0.09874054]
[1729611834550,0.01106403,67434.0,67429.0,0.09874054]
[1729611834758,0.01106403,67433.0,67429.0,0.09874054]
[1729611834959,0.01106403,67432.0,67429.0,0.09874054]
[1729611835171,0.23304268,67438.0,67429.0,0.09874054]
[1729611835172,0.01106403,67431.0,67429.0,0.09874054]
[1729611835401,0.01106403,67436.0,67429.0,0.09874054]
[1729611835608,0.01106403,67435.0,67429.0,0.09874054]
[1729611835832,0.01106403,67434.0,67432.0,0.0022244]
[1729611836018,0.01106403,67433.0,67432.0,0.0022244]
[1729611838205,0.01106403,67437.0,67432.0,0.0022244]
[1729611838411,0.01106403,67436.0,67432.0,0.0022244]
[1729611838607,0.01106403,67435.0,67432.0,0.0022244]
[1729611838744,0.01106403,67434.0,67432.0,0.0022244]
[1729611838944,0.02487594,67440.0,67432.0,0.1505204]
[1729611839147,0.02487594,67440.0,67432.0,0.0022244]
[1729611839148,0.01106403,67439.0,67432.0,0.0022244]
[1729611839437,0.01106403,67438.0,67432.0,0.0022244]
[1729611839551,0.01106403,67437.0,67432.0,0.0022244]
[1729611839754,0.001,67433.0,67432.0,0.0022244]
[1729611840456,0.01206403,67433.0,67432.0,0.0022244]
[1729611841422,0.001,67433.0,67432.0,0.0022244]
[1729611841831,0.01206403,67433.0,67432.0,0.0022244]
[1729611842039,0.001,67433.0,67432.0,0.0022244]
[1729611842239,0.01206403,67433.0,67432.0,0.0022244]
[1729611843094,0.01105516,67433.0,67432.0,0.0022244]
[1729611843835,0.01205516,67433.0,67432.0,0.0022244]
[1729611844251,0.01205516,67433.0,67432.0,0.15086194]
[1729611844680,0.001,67433.0,67432.0,0.32456194]
[1729611845352,0.01105516,67442.0,67441.0,0.148277]
[1729611845558,0.01105516,67442.0,67440.0,0.296558]
[1729611845559,0.0110616,67442.0,67440.0,0.296558]
[1729611845758,0.01381926,67448.0,67441.0,0.0948]
[1729611845964,0.02488143,67447.0,67441.0,0.243077]
[1729611846169,0.005,67451.0,67441.0,0.243077]
[1729611846170,0.02488143,67446.0,67441.0,0.243077]
[1729611846320,0.02488143,67445.0,67441.0,0.0948]
[1729611846522,0.19744589,67451.0,67441.0,0.0948]
[1729611846523,0.01381926,67444.0,67441.0,0.0948]
[1729611846724,0.01106265,67444.0,67441.0,0.0948]
[1729611846941,0.01106265,67443.0,67441.0,0.0948]
[1729611847166,0.01106265,67442.0,67441.0,0.0948]
[1729611847943,0.01105971,67442.0,67441.0,0.0948]
[1729611849117,0.01105971,67442.0,67435.0,0.22294059]
[1729611849118,0.148284,67438.0,67434.0,0.00034054]
[1729611849439,0.148284,67438.0,67436.0,0.22294059]
[1729611849440,0.35859599,67438.0,67436.0,0.22294059]
[1729611849642,0.0411777,67438.0,67436.0,0.22294059]
[1729611849857,0.0411777,67438.0,67430.0,0.00034054]
[1729611850054,0.444867,67436.0,67432.0,0.004]
[1729611850273,0.23750973,67437.0,67432.0,0.004]
[1729611850492,0.148291,67435.0,67432.0,0.004]
[1729611850690,0.148291,67435.0,67429.0,0.22294059]
[1729611850691,0.01105792,67435.0,67429.0,0.22294059]
[1729611850910,0.148289,67436.0,67429.0,0.22294059]
[1729611850911,0.01105792,67436.0,67429.0,0.22294059]
[1729611851102,0.01105792,67435.0,67431.0,0.00222442]
[1729611851240,0.01105792,67434.0,67431.0,0.00222442]
[1729611851444,0.01105792,67433.0,67431.0,0.00222442]
[1729611851649,0.15935492,67432.0,67431.0,0.00222442]
[1729611852074,0.1483,67431.0,67424.0,0.00034054]
[1729611852277,0.1483,67431.0,67423.0,0.00034054]
[1729611852278,0.17318001,67430.0,67423.0,0.00034054]
[1729611852490,0.17318301,67429.0,67421.0,0.22328113]
[1729611852684,0.148308,67427.0,67421.0,0.22294059]
[1729611852884,0.148308,67427.0,67418.0,0.00034054]
[1729611852885,0.148308,67427.0,67422.0,0.22294059]
[1729611853040,0.17317816,67427.0,67422.0,0.22294059]
[1729611853260,0.02487016,67427.0,67422.0,0.22294059]
[1729611853459,0.15936164,67427.0,67422.0,0.22294059]
[1729611854263,0.11215509,67427.0,67422.0,0.22294059]
[1729611854475,0.12597161,67427.0,67422.0,0.22294059]
[1729611854744,0.27427961,67427.0,67422.0,0.22294059]
[1729611854945,0.12597161,67427.0,67422.0,0.22294059]
[1729611855152,0.27427961,67427.0,67422.0,0.22294059]
[1729611855850,0.27927961,67427.0,67426.0,0.00265]
[1729611857029,0.13097161,67427.0,67426.0,0.00265]
[1729611857229,0.02987016,67427.0,67426.0,0.00265]
[1729611857431,0.01605364,67427.0,67426.0,0.00265]
[1729611857634,0.01605364,67427.0,67426.0,0.10025]
[1729611857912,0.005,67427.0,67426.0,0.10025]
[1729611858578,0.01605364,67427.0,67426.0,0.10025]
[1729611858773,0.005,67427.0,67426.0,0.10025]
[1729611859180,0.0158752,67427.0,67426.0,0.10025]
[1729611859576,0.00482156,67427.0,67426.0,0.10025]
[1729611859776,0.0158752,67427.0,67426.0,0.10025]
[1729611859951,0.00482156,67427.0,67426.0,0.10025]
[1729611860161,0.0158752,67427.0,67426.0,0.10025]
[1729611860339,0.00482156,67427.0,67426.0,0.10025]
[1729611860546,0.0158752,67427.0,67426.0,0.10025]
[1729611860758,0.00482156,67427.0,67426.0,0.10025]
[1729611860954,0.00482156,67427.0,67426.0,0.24890054]
[1729611861372,0.00482156,67427.0,67426.0,0.10059054]
[1729611861577,0.00482156,67427.0,67426.0,0.00299054]
[1729611861807,0.00482156,67427.0,67426.0,0.00265]
[1729611862245,0.1641832,67427.0,67426.0,0.00265]
[1729611862497,0.17798846,67427.0,67426.0,0.00265]
[1729611862736,0.1641832,67427.0,67426.0,0.00265]
[1729611862984,0.29553638,67427.0,67426.0,0.00265]
[1729611863216,0.30934164,67427.0,67426.0,0.00265]
[1729611863460,0.28448274,67427.0,67426.0,0.00265]
[1729611863695,0.30934556,67427.0,67426.0,0.00265]
[1729611863930,0.17799238,67427.0,67426.0,0.00265]
[1729611864141,0.16417981,67427.0,67426.0,0.00265]
[1729611865012,0.01587181,67427.0,67426.0,0.00265]
[1729611865225,0.16417981,67427.0,67426.0,0.00265]
[1729611869559,0.17799238,67427.0,67426.0,0.00265]
[1729611870222,0.31001179,67427.0,67426.0,0.00265]
[1729611870638,0.35607874,67427.0,67426.0,0.00265]
[1729611870847,0.51369735,67427.0,67426.0,0.00265]
[1729611871051,0.51370326,67427.0,67426.0,0.00265]
[1729611871261,0.51170326,67427.0,67426.0,0.00265]
[1729611871485,0.6136817,67427.0,67426.0,0.00265]
[1729611871761,0.6186817,67427.0,67426.0,0.00265]
[1729611871968,0.66287932,67427.0,67426.0,0.00265]
[1729611872212,0.66087932,67427.0,67426.0,0.00265]
[1729611872422,0.43340045,67427.0,67426.0,0.00265]
[1729611872653,0.38920114,67427.0,67426.0,0.00265]
[1729611872872,0.08193399,67427.0,67426.0,0.00265]
[1729611873081,0.02205447,67427.0,67426.0,0.00265]
[1729611873560,0.01705447,67427.0,67426.0,0.00265]
[1729611874266,0.006,67427.0,67426.0,0.00265]
[1729611874486,0.01705401,67427.0,67426.0,0.00265]
[1729611874979,0.02805401,67427.0,67426.0,0.00265]
[1729611875461,0.01705401,67427.0,67426.0,0.00265]
[1729611875687,0.17136201,67427.0,67426.0,0.00265]
[1729611876405,0.03686658,67427.0,67426.0,0.00265]
[1729611876634,0.18517458,67427.0,67426.0,0.00265]
[1729611877557,0.03686658,67427.0,67426.0,0.00265]
[1729611877990,0.03687808,67427.0,67426.0,0.00265]
[1729611879707,0.18518608,67427.0,67426.0,0.00265]
[1729611879911,0.03687808,67427.0,67426.0,0.00265]
[1729611880604,0.03687808,67427.0,67426.0,0.00220255]
[1729611880836,0.18518608,67427.0,67426.0,0.00220255]
[1729611881598,0.17137351,67427.0,67426.0,0.00220255]
[1729611881791,0.18521138,67427.0,67426.0,0.00220255]
[1729611881967,0.19627954,67427.0,67426.0,0.00220255]
[1729611882179,0.18521137,67427.0,67426.0,0.00220255]
[1729611882821,0.18521137,67427.0,67426.0,0.00120255]
[1729611882822,0.17921137,67427.0,67426.0,0.00120255]
[1729611883407,0.23430026,67427.0,67426.0,0.00220255]
[1729611883617,0.07699226,67427.0,67426.0,0.00120255]
[1729611883958,0.08399226,67427.0,67426.0,0.00220255]
[1729611884515,0.08481826,67427.0,67426.0,0.00220255]
[1729611885037,0.23312626,67427.0,67426.0,0.00220255]
[1729611885241,0.20822289,67427.0,67426.0,0.00220255]
[1729611885422,0.23312778,67427.0,67426.0,0.00220255]
[1729611886264,0.08481978,67427.0,67426.0,0.00220255]
[1729611886756,0.23312778,67427.0,67426.0,0.00220255]
[1729611887361,0.08481978,67427.0,67426.0,0.00220255]
[1729611888788,0.2761893,67427.0,67426.0,0.00220255]
[1729611892558,0.23312778,67427.0,67426.0,0.00220255]
[1729611892759,0.22205894,67427.0,67426.0,0.00220255]
[1729611893044,0.08482687,67427.0,67426.0,0.00220255]
[1729611894303,0.08482687,67427.0,67420.0,0.21925609]
[1729611894515,0.07100087,67426.0,67420.0,0.07093509]
[1729611894715,0.07100087,67425.0,67420.0,0.07093509]
[1729611894914,0.07100087,67424.0,67420.0,0.36758209]
[1729611895113,0.02491198,67423.0,67420.0,0.21925709]
[1729611895315,0.02491198,67422.0,67420.0,0.21925709]
[1729611895527,0.02491198,67421.0,67420.0,0.21925709]